Workbook

Sheet Choose SIC and Region
B1: New York CoPower ONE Rate Areas and SIC Codes
A2: NY DPPO Rate Area Definitions
A3: Region 1 | D3: Region 2
A4: ZIP Codes 100 - 102 | D4: ZIP Codes: 103-119, 124 (Orange), 125 (Orange, Putnam), 127 (Orange)
A5: Region 3
A6: Zip Codes: 120-123, 124 (Ulster), 125 (Ulster), 126, 127 (Delaware, Sullivan, Ulster), 128-149
A8: NY DHMO Rate Area Definitions
A9: Region 1 | B9: Region 2
A10: Zip Codes: 100-102 | B10: Zip Codes: 103-149
A12: SIC Level Classifications
A13: Level 1 Eligible Industries - Delta Dental (DPPO)
A14: Advertising (except Misc., not classified 7319) | C14: 7311-7313 | D14: Hospitals | F14: 8062-8069
A15: Agriculture, Forestry, Fishing (except seasonal employees) | C15: 0100-0999 | D15: Independent Auto Repair and Services | F15: 7532-7599
A16: Auto Rental Agencies | C16: 7513-7519 | D16: Laundry/Garment Service/Show Repair Services | F16: 7211-7219, 7251
A17: Automobile Parking Services | C17: 7521 | D17: Manufacturing (except Jewelry Manufacturing) | F17: 2000-2699
A18: Building Maintenance / Equipment Rental | C18: 7349-7359 | D18: Manufacturing (Chemicals, Allied and Other) | F18: 2810-3999
A19: Collection Agencies and Credit Reporting Services | C19: 7322-7323 | D19: Mining, Oil and Gas Extraction | F19: 1000-1499
A20: Communication (Radio, Telephone, TV/Radio Broadcasting) | C20: 4800-4899 | D20: Miscellaneous Repair (Welding, etc) | F20: 7692-7699
A21: Community Services Organizations / Social Services | C21: 8300-8499 | D21: Museum Art Galleries and Gardens | F21: 8412, 8422
A22: Computer Programming and Other Computer Services | C22: 7371-7379 | D22: New Syndicates | F22: 7383
A23: Construction Contractors | C23: 1500-1799 | D23: Photofinishing Labs | F23: 7384
A24: Direct Mailing, Reproduction, Secretarial Services | C24: 7331-7338 | D24: Printing and Publishing | F24: 2700-2799
A25: Disinfecting and Pest Control Services | C25: 7342 | D25: Public Administration (Cities, Counties, Police, etc) | F25: 9000-9720, 9722-9998
A26: Government Funded Groups | C26: 8300-8499 | D26: Public and Private Schools (Elementary and High School) | F26: 8200-8299
A27: Electrical Repair (Radio, TV, A/C, Refrigerator) | C27: 7622-7629 | D27: Retail | F27: 5200-5510, 5610-5699, 5712-5736, 5912-5999
A28: Engineering and Management Services | C28: 8711-8748 | D28: Security Systems, Detectives, Armored Car | F28: 7381-7382
A29: Finance (Banks, Securities, Credit Agencies) | C29: 6000-6299 | D29: Transportation | F29: 4000-4799
A30: Funeral Services and Crematories | C30: 7261 | D30: Utilities | F30: 4900-4999
A31: Furniture Repair/Reupholstery | C31: 7641 | D31: Wholesale Trade | F31: 5000-5199
A32: Misc. Computer Services | C32: 7379
A33: Level 2 Eligible Industries - Delta Dental (DPPO)
A34: Advertising (Miscellaneous, not classified) | C34: 7319 | D34: Medical Groups | F34: 8000-8059, 8082-8099
A35: Automobile Dealerships | C35: 5511-5599 | D35: Photographic Studios | F35: 7221
A36: Amusement, Recreation, and Entertainment | C36: 7800-7999 | D36: Restaurants | F36: 5088-5899
A37: Hotels | C37: 7000-7099 | D37: Tax Return Preparation Services / Misc. Personal Svcs | F37: 7291-7299
A38: Insurance Carriers/Brokers | C38: 6300-6499 | D38: Real Estate | F38: 6500-6799
A39: Jewelry Manufacturing | C39: 3911-3915 | D39: Religious Organizations (Admin. And Mgmt. staff only) | F39: 8661
A40: Legal | C40: 8100-8199 | D40: Watch, Clock and Jewelry Repair | F40: 7631
A41: Management Carve-out (any industry) | C41: 9999
A42: Ineligible Industries - Delta Dental (DPPO)
A43: Associations and Trusts1 | C43: 8600-8660, 8662-8699 | D43: Religious Organizations (except Churches #8661) | F43: No SIC
A44: Beauty and Barber Shops | C44: 7231-7241 | D44: Private Households | F44: 8811
A45: International Affairs | C45: 9721 | D45: Partnerships | F45: No SIC
A46: Dental Offices, Dental Labs, and Medical Labs | C46: 8021, 8071, 8072 | D46: Seasonal Employees (Christmas/Part-time Help) | F46: No SIC
A47: Employment Agencies & PEOs | C47: 7361-7363 | D47: Seasonal Employees (Agriculture) | F47: 0761-0783
A48: Groups with high turnover2 | C48: Varies | D48: Miscellaneous Services not classified elsewhere | F48: 8999
A49: Miscellaneous Business Services | C49: 7389 | D49: Cannabis or Cannabis Related Industries | F49: No SIC
A50: 1 Management and administrative staff of associations and trusts are eligible at Level 2. Use SIC Code 9999.
A51: 2 A business has high turnover if 20% or more of the average number of its employees during the past 12 months were newly hired for reasons other than the growth of the business.
A53: Ineligible Industries - DeltaCare® USA (DHMO)
A54: Law firms, associations, groups with seasonal employment, groups without an employee/employer relationship and businesses with high turnover2 are not eligible for any DeltaCare® USA plan. All groups in the cannabis or cannabis related industries are ineligible.

Sheet CoPower ONE DHMO
I5: =IF(AND(HMO_EligibleEEs<>"Enter your group size",F14>HMO_EligibleEEs),"Total enrolling employees higher than eligible employees. Change eligible or enrolling employees.","") -> 
A7: Company Information
A8: Company Name: | I8: =IF(H12="Yes",,"Must have a minimum of 2 enrolled for Good plan") -> Must have a minimum of 2 enrolled for Good plan
A9: Effective Date: | B9: Select your effective date | I9: =IF(H13="Yes",,"Must have a minimum of 5 enrolled for Better and Best plans") -> Must have a minimum of 5 enrolled for Better and Best plans
A10: Employer Contribution for Employees | B10: Select employer contribution for employees | F10: Enrolling Employees | I10: =IF(OR(AND(OR(HMO_EligibleEEs="Enter your group size",HMO_EligibleEEs<10),OR(B13="Enhanced Life $50,000",B13="Enhanced Life $100,000",B13="Enhanced Life $150,000")),AND((SUM(G13)<10),OR(B13="Enhanced Life $50,000",B13="Enhanced Life $100,000",B13="Enhanced Life $150,000"))),"Enhanced Life is only available for CoPower ONE plans with 10+ enrolling employees.","") -> 
A11: Eligible Employees | B11: Enter your group size | D11: Number of Single | F11: 0 | G11: =IF(GroupSize>49,"50-99",IF(AND(GroupSize<50,GroupSize>9),"10-49",IF(AND(GroupSize>4,GroupSize<10),"5-9","0-4"))) -> 0-4
A12: Region | B12: Select your NY DHMO Region | D12: Number of Two Party | F12: 0 | G12: =SUM(F11+F12+F13) -> 0 | H12: =IF(SUM(G12)>1,"Yes","No") -> No
A13: Life Amount2 | B13: Standard Life Amount | D13: Number of Three Party+ | F13: 0 | G13: =SUM(F11+F12+F13) -> 0 | H13: =IF(SUM(G13)>4,"Yes","No") -> No | I13: =IF(GroupSize=0,"",IF(OR(HMO_ERContribution="Select employer contribution for employees",HMO_EligibleEEs="Enter your group size"),"Incomplete information. Select employer contribution / Enter eligible employees.",IF(HMO_ERContribution="51-99% (51+ Eligible)",IF((0.75*HMO_EligibleEEs)>GroupSize,"Employee participation below 75%. CoPower ONE Non-Vol requires minimum 75% participation with 51-99% employer contribution for employees.",""),IF(HMO_ERContribution="75-99% (2-50 Eligible)",IF((0.75*HMO_EligibleEEs)>GroupSize,"Employee participation below 75%. CoPower ONE Non-Vol requires minimum 75% participation with 75-99% employer contribution for employees.",""),IF(HMO_EligibleEEs<>GroupSize,"Employee Participation not 100%. CoPower ONE Non-Vol requires 100% participation with 100% employer contribution for employees.",""))))) -> 
D14: Total Enrolling Employees | F14: =F13+F12+EECOunt_HMO_Single -> 0 | L14: =IF(OR(I8="Must have a minimum of 2 enrolled for Good plan",I5="Total enrolling employees higher than eligible employees. Change eligible or enrolling employees.",I10="Enhanced Life is only available for CoPower ONE plans with 10+ enrolling employees.",I13<>""),1,0) -> 1
L15: =IF(OR(I9="Must have a minimum of 5 enrolled for Better and Best plans",I10="Enhanced Life is only available for CoPower ONE plans with 10+ enrolling employees.",I5="Total enrolling employees higher than eligible employees. Change eligible or enrolling employees.",I13<>""),1,0) -> 1
A16: Cost Comparison - Monthly Rates
A18: =CONCATENATE(B12,B13,G11) -> Select your NY DHMO RegionStandard Life Amount0-4 | C18: Good | E18: Better | G18: Best
A20: Single | C20: =IF(L14=1,"",_xlfn.IFNA(VLOOKUP(AreaSIC_Selection,List_RateTable_HMO,2,FALSE),"")) ->  | E20: =IF(L15=1,"",_xlfn.IFNA(VLOOKUP(AreaSIC_Selection,List_RateTable_HMO,5,FALSE),"")) ->  | G20: =IF(L15=1,"",_xlfn.IFNA(VLOOKUP(AreaSIC_Selection,List_RateTable_HMO,8,FALSE),"")) -> 
A21: Two Party | C21: =IF(L14=1,"",_xlfn.IFNA(VLOOKUP(AreaSIC_Selection,List_RateTable_HMO,3,FALSE),"")) ->  | E21: =IF(L15=1,"",_xlfn.IFNA(VLOOKUP(AreaSIC_Selection,List_RateTable_HMO,6,FALSE),"")) ->  | G21: =IF(L15=1,"",_xlfn.IFNA(VLOOKUP(AreaSIC_Selection,List_RateTable_HMO,9,FALSE),"")) -> 
A22: Three Party+ | C22: =IF(L14=1,"",_xlfn.IFNA(VLOOKUP(AreaSIC_Selection,List_RateTable_HMO,4,FALSE),"")) ->  | E22: =IF(L15=1,"",_xlfn.IFNA(VLOOKUP(AreaSIC_Selection,List_RateTable_HMO,7,FALSE),"")) ->  | G22: =IF(L15=1,"",_xlfn.IFNA(VLOOKUP(AreaSIC_Selection,List_RateTable_HMO,10,FALSE),"")) -> 
A23: Total Cost | C23: =IFERROR(SUM((C20*F11)+(C21*F12)+(C22*F13)),"") ->  | E23: =IFERROR(SUM((E20*F11)+(E21*F12)+(E22*F13)),"") ->  | G23: =IFERROR(SUM((G20*F11)+(G21*F12)+(G22*F13)),"") -> 
A25: Benefit Comparison
C27: Good | E27: Better | G27: Best
C28: In Network | D28: Out of Network | E28: In Network | F28: Out of Network | G28: In Network | H28: Out of Network
A29: DHMO - DeltaCare® USA | C29: DeltaCare® USA Plan 13B
A30: Calendar Maximum | C30: None | G30: None
A31: Deductible | C31: None | G31: None
A32: Diagnostic & Preventive | C32: Exams, x-rays, cleanings, and flouride treatments | G32: No cost
A33: Restorative | C33: Fillings (amalgan cost per surface) Crown – porcelain fused to high noble metal; full cast high noble metal | G33: No cost $355 copay
A34: Periodontics | C34: Periodontic scaling & root planing—four or more teeth per quadrant | G34: $50 copay
A35: Endodontics | C35: Root canal – anterior (excluding final restoration) Root canal – molar (excluding final restoration) | G35: $95 copay $335 copay
A36: Oral Surgery | C36: Extraction, erupted tooth or exposed root Removal of impacted tooth – completely boney | G36: $5 copay $95 copay
A37: Prosthodontics | C37: Complete denture – maxillary Maxillary partial denture – resin base | G37: $285 copay $245 copay
A38: Orthodontics | C38: Child Adult | G38: $1,900 copay $2,100 copay
C39: Good | E39: Better | G39: Best
A40: Vision - Vision Service Plan
A41: Annual Copayment | C41: $25 exam/$25 materials | E41: $10 exam/$25 materials | G41: $10 exam/$25 materials
A42: Eye Exam | C42: Covered in full* | D42: Reimbursed up to $45 | E42: Covered in full* | F42: Reimbursed up to $45 | G42: Covered in full* | H42: Reimbursed up to $45
A43: Single-Vision Lenses | C43: Covered in full* | D43: Reimbursed up to $30 | E43: Covered in full* | F43: Reimbursed up to $30 | G43: Covered in full* | H43: Reimbursed up to $30
A44: Bifocal Lenses | C44: Covered in full* | D44: Reimbursed up to $50 | E44: Covered in full* | F44: Reimbursed up to $50 | G44: Covered in full* | H44: Reimbursed up to $50
A45: Trifocal Lenses | C45: Covered in full* | D45: Reimbursed up to $65 | E45: Covered in full* | F45: Reimbursed up to $65 | G45: Covered in full* | H45: Reimbursed up to $65
A46: Frames | C46: $150 allowance | D46: Reimbursed up to $70 | E46: $150 allowance | F46: Reimbursed up to $70 | G46: $175 allowance | H46: Reimbursed up to $70
A47: Contact Lenses | C47: $150 allowance | D47: Reimbursed up to $105 | E47: $150 allowance | F47: Reimbursed up to $105 | G47: $175 allowance | H47: Reimbursed up to $105
A48: Vision - Frequency
A49: Eye Exam | C49: 12 months | E49: 12 months | G49: 12 months
A50: Lenses | C50: 24 months | E50: 12 months | G50: 12 months
A51: Frames | C51: 24 months | E51: 24 months | G51: 12 months
A52: Contact Lenses (in lieu of lenses and a frame) | C52: 24 months | E52: 12 months | G52: 12 months
A53: Life - UNUM
A54: Basic Group Term Life with AD&D and EAP | C54: =IF($B$13="Standard Life Amount","$15,000 policy",$B$13) -> $15,000 policy | E54: =IF($B$13="Standard Life Amount","$20,000 policy",$B$13) -> $20,000 policy | G54: =IF($B$13="Standard Life Amount","$25,000 policy",$B$13) -> $25,000 policy
A55: 1 1-year rate guarantee.
A56: 2 Employers with 10 or more enrolling employees have the option of substituting the standard group term life policy amounts with either a $50,000, $100,000 or $150,000 policy for an additional charge.
A57: * After Copay
A58: Presented by
A59: **Enter your contact information here.** | F59: License #
A61: This document is not meant to replace a quote and does not include all exclusions, limitations or program guidelines. While the information and rates provided here are believed to be accurate as of the print date, they are subject to change without notice. For the most up-to-date information, contact CoPower. CoPower ONE plans are not available to groups currently insured with UNUM.

Sheet CoPower ONE DPPO
K6: =IF(AND(PPO_EligibleEEs<>"Enter your group size",G16>PPO_EligibleEEs),"Total enrolling employees higher than eligible employees. Change eligible or enrolling employees.","") -> 
A8: Company Information
A9: Company Name: | K9: =IF(J14="Yes","","Must have a minimum of 2 enrolled for Good plan") -> Must have a minimum of 2 enrolled for Good plan
A10: Effective Date: | B10: Select your effective date | K10: =IF(J15="Yes","","Must have a minimum of 5 enrolled for Better, Better Plus and Best plans") -> Must have a minimum of 5 enrolled for Better, Better Plus and Best plans
A11: Employer Contribution for Employees | B11: Select employer contribution for employees | K11: =IF(OR(AND(OR(PPO_EligibleEEs="Enter your group size",PPO_EligibleEEs<10),OR(B15="Enhanced Life $50,000",B15="Enhanced Life $100,000",B15="Enhanced Life $150,000")),AND((SUM(I14)<10),OR(B15="Enhanced Life $50,000",B15="Enhanced Life $100,000",B15="Enhanced Life $150,000"))),"Enhanced Life is only available for CoPower ONE plans with 10+ enrolling employees.","") -> 
A12: Eligible Employees | B12: Enter your group size | G12: Enrolling Employees | L12: =IF(OR(K9<>"",K11<>"",K6<>"",K13<>""),1,0) -> 1
A13: Region | B13: Select your NY DPPO Region | E13: Number of Single | G13: 0 | I13: =IF(GroupSize>49,"50-99",IF(AND(GroupSize<50,GroupSize>9),"10-49",IF(AND(GroupSize>4,GroupSize<10),"5-9",IF(GroupSize>1,"2-4","")))) ->  | K13: =IF(GroupSize=0,"",IF(OR(PPO_ERContribution="Select employer contribution for employees",PPO_EligibleEEs="Enter your group size"),"Incomplete information. Select employer contribution / Enter eligible employees.",IF(PPO_ERContribution="51-99% (51+ Eligible)",IF((0.75*PPO_EligibleEEs)>GroupSize,"Employee participation below 75%. CoPower ONE Non-Vol requires minimum 75% participation with 51-99% employer contribution for employees.",""),IF(PPO_ERContribution="75-99% (2-50 Eligible)",IF((0.75*PPO_EligibleEEs)>GroupSize,"Employee participation below 75%. CoPower ONE Non-Vol requires minimum 75% participation with 75-99% employer contribution for employees.",""),IF(PPO_EligibleEEs<>GroupSize,"Employee Participation not 100%. CoPower ONE Non-Vol requires 100% participation with 100% employer contribution for employees.",""))))) ->  | L13: =IF(OR(K9<>"",K10<>"",K11<>"",K6<>"",K13<>""),1,0) -> 1
A14: SIC Level | B14: Select your SIC Level | E14: Number of Two Party | G14: 0 | I14: =SUM(G13+G14+G15) -> 0 | J14: =IF(SUM(I14)>1,"Yes","No") -> No
A15: Life Amount2 | B15: Standard Life Amount | E15: Number of Three Party+ | G15: 0 | I15: =SUM(G13+G14+G15) -> 0 | J15: =IF(SUM(I15)>4,"Yes","No") -> No
E16: Total Enrolling Employees | G16: =EECount_PPO_Single+G14+G15 -> 0
A18: Cost Comparison - Monthly Rates
A20: =CONCATENATE(B13,B14,B15,I13) -> Select your NY DPPO RegionSelect your SIC LevelStandard Life Amount | B20: =SUM(CPPPO_EECheck) -> 0 | C20: Good | E20: Better | G20: Better Plus | I20: Best
A22: Single | C22: =IF(L12=1,"",_xlfn.IFNA(VLOOKUP(AreaSIC_Selection,List_RateTable_PPO,2,FALSE),"")) ->  | E22: =IF(L13=1,"",_xlfn.IFNA(VLOOKUP(AreaSIC_Selection,List_RateTable_PPO,5,FALSE),"")) ->  | G22: =IF(L13=1,"",_xlfn.IFNA(VLOOKUP(AreaSIC_Selection,List_RateTable_PPO,8,FALSE),"")) ->  | I22: =IF(L13=1,"",_xlfn.IFNA(VLOOKUP(AreaSIC_Selection,List_RateTable_PPO,11,FALSE),"")) -> 
A23: Two Party | C23: =IF(L12=1,"",_xlfn.IFNA(VLOOKUP(AreaSIC_Selection,List_RateTable_PPO,3,FALSE),"")) ->  | E23: =IF(L13=1,"",_xlfn.IFNA(VLOOKUP(AreaSIC_Selection,List_RateTable_PPO,6,FALSE),"")) ->  | G23: =IF(L13=1,"",_xlfn.IFNA(VLOOKUP(AreaSIC_Selection,List_RateTable_PPO,9,FALSE),"")) ->  | I23: =IF(L13=1,"",_xlfn.IFNA(VLOOKUP(AreaSIC_Selection,List_RateTable_PPO,12,FALSE),"")) -> 
A24: Three Party+ | C24: =IF(L12=1,"",_xlfn.IFNA(VLOOKUP(AreaSIC_Selection,List_RateTable_PPO,4,FALSE),"")) ->  | E24: =IF(L13=1,"",_xlfn.IFNA(VLOOKUP(AreaSIC_Selection,List_RateTable_PPO,7,FALSE),"")) ->  | G24: =IF(L13=1,"",_xlfn.IFNA(VLOOKUP(AreaSIC_Selection,List_RateTable_PPO,10,FALSE),"")) ->  | I24: =IF(L13=1,"",_xlfn.IFNA(VLOOKUP(AreaSIC_Selection,List_RateTable_PPO,13,FALSE),"")) -> 
A25: Total Cost | C25: =IFERROR(SUM((C22*$G$13)+(C23*$G$14)+(C24*$G$15)),"") ->  | E25: =IFERROR(SUM((E22*$G$13)+(E23*$G$14)+(E24*$G$15)),"") ->  | G25: =IFERROR(SUM((G22*$G$13)+(G23*$G$14)+(G24*$G$15)),"") ->  | I25: =IFERROR(SUM((I22*$G$13)+(I23*$G$14)+(I24*$G$15)),"") -> 
A27: Benefit Comparison
C29: Good | E29: Better | G29: Better Plus | I29: Best
C30: In Network | D30: Out of Network | E30: In Network | F30: Out of Network | G30: In Network | H30: Out of Network | I30: In Network | J30: Out of Network
A31: DPPO - Delta Dental | C31: Delta Dental DPPO3 | G31: Delta Dental DPPO + Premier4
A32: Calendar Maximum (per patient) | C32: $1,000 | D32: $750 | E32: $1,500 | F32: $1,250 | G32: $1,500 | H32: $1,250 | I32: $2,000 | J32: $1,500
A33: Deductible (per patient) | C33: $50 | D33: $75 | E33: $50 | F33: $75 | G33: $50 | H33: $75 | I33: $50 | J33: $75
A34: Deductible Waived for Diagnostic & Preventive | C34: Yes | D34: No | E34: Yes | F34: No | G34: Yes | H34: No | I34: Yes
A35: Diagnostic and Preventive Services | C35: 100% | D35: 50% | E35: 100% | F35: 80% | G35: 100% | H35: 80% | I35: 100%
A36: Basic, Oral Surgery, Endodontics and Periodontics | C36: 80% | D36: 50% | E36: 80% | G36: 80% | I36: 80%
A37: Major Services | C37: 50% | E37: 50% | G37: 50% | I37: 50%
A38: Orthodontics-Children Only (Available to groups with 5+ enrolled) | C38: Not available | E38: 50% lifetime max $1,000 | G38: 50% lifetime max $1,000 | I38: 50% lifetime max $1,000
C39: Good | E39: Better | G39: Better Plus | I39: Best
A40: Vision - Vision Service Plan
A41: Annual Copayment | C41: $25 exam/$25 materials | E41: $10 exam/$25 materials | G41: $10 exam/$25 materials | I41: $10 exam/$25 materials
A42: Eye Exam | C42: Covered in full* | D42: Reimbursed up to $45 | E42: Covered in full* | F42: Reimbursed up to $45 | G42: Covered in full* | H42: Reimbursed up to $45 | I42: Covered in full* | J42: Reimbursed up to $45
A43: Single-Vision Lenses | C43: Covered in full* | D43: Reimbursed up to $30 | E43: Covered in full* | F43: Reimbursed up to $30 | G43: Covered in full* | H43: Reimbursed up to $30 | I43: Covered in full* | J43: Reimbursed up to $30
A44: Bifocal Lenses | C44: Covered in full* | D44: Reimbursed up to $50 | E44: Covered in full* | F44: Reimbursed up to $50 | G44: Covered in full* | H44: Reimbursed up to $50 | I44: Covered in full* | J44: Reimbursed up to $50
A45: Trifocal Lenses | C45: Covered in full* | D45: Reimbursed up to $65 | E45: Covered in full* | F45: Reimbursed up to $65 | G45: Covered in full* | H45: Reimbursed up to $65 | I45: Covered in full* | J45: Reimbursed up to $65
A46: Frames | C46: $150 allowance | D46: Reimbursed up to $70 | E46: $150 allowance | F46: Reimbursed up to $70 | G46: $150 allowance | H46: Reimbursed up to $70 | I46: $175 allowance | J46: Reimbursed up to $70
A47: Contact Lenses | C47: $150 allowance | D47: Reimbursed up to $105 | E47: $150 allowance | F47: Reimbursed up to $105 | G47: $150 allowance | H47: Reimbursed up to $105 | I47: $175 allowance | J47: Reimbursed up to $105
A48: Vision - Frequency
A49: Eye Exam | C49: 12 months | E49: 12 months | G49: 12 months | I49: 12 months
A50: Lenses | C50: 24 months | E50: 12 months | G50: 12 months | I50: 12 months
A51: Frames | C51: 24 months | E51: 24 months | G51: 24 months | I51: 12 months
A52: Contact Lenses (in lieu of lenses and a frame) | C52: 24 months | E52: 12 months | G52: 12 months | I52: 12 months
A53: Life - UNUM
A54: Basic Group Term Life with AD&D and EAP | C54: =IF($B$15="Standard Life Amount","$15,000 policy",$B$15) -> $15,000 policy | E54: =IF($B$15="Standard Life Amount","$20,000 policy",$B$15) -> $20,000 policy | G54: =IF($B$15="Standard Life Amount","$20,000 policy",$B$15) -> $20,000 policy | I54: =IF($B$15="Standard Life Amount","$25,000 policy",$B$15) -> $25,000 policy
A55: 1 1-year rate guarantee.
A56: 2 Employers with 10 or more enrolling employees have the option of substituting the standard group term life policy amounts with either a $50,000, $100,000 or $150,000 policy for an additional charge.
A57: 3 Delta Dental DPPO: All dentists (in- and out-of-network) are reimbursed at the lesser of the submitted charge or the DPPO provider's contracted fee.
A58: 4 Delta Dental DPPO + Premier: DPPO dentists are reimbursed at the lesser of the submitted charge or the DPPO provider's contracted fee. Delta Dental Premier dentists are reimbursed at the lesser of the submitted charge or the Premier provider's contracted fee. Non-contracted dentists are reimbursed at the lesser of the submitted charge or the plan contract allowance.
A59: * After Copay
A61: Presented by
A62: **Enter your contact information here.** | H62: License #
A64: This document is not meant to replace a quote and does not include all exclusions, limitations or program guidelines. While the information and rates provided here are believed to be accurate as of the print date, they are subject to change without notice. For the most up-to-date information, contact CoPower. CoPower ONE plans are not available to groups currently insured with UNUM.

Sheet CoPower ONE Non-MPB Dual Choice
K5: =IF(AND(HP_EligibleEEs<>"Enter your group size",GroupSize_DualTotal>HP_EligibleEEs),"Total enrolling employees higher than eligible employees. Change eligible or enrolling employees.","") -> 
A8: Company Information
A9: Company Name: | K9: =IF(SUM(GroupSize_DualTotal=0),"",IF(J16="Yes","","Dual Choice requires a minimum of 4 enrolled. ")) -> 
A10: Effective Date: | B10: Select your effective date | E10: =IF(GroupSize_DualTotal>49,"50-99",IF(AND(GroupSize_DualTotal<50,GroupSize_DualTotal>9),"10-49",IF(AND(GroupSize_DualTotal>4,GroupSize_DualTotal<10),"5-9",IF(GroupSize_DualTotal>1,"2-4","")))) ->  | I10: =IF(OR(K9<>"",K10<>"",K16<>"",K5<>"",L13<>""),1,0) -> 0 | J10: Good Eligible | K10: =IF(GroupSize_DualTotal=0,"",IF(I15="Yes","","CoPower ONE Good: Dual Choice requires a minimum of 2 enrolled on DHMO and on DPPO.")) -> 
A11: Employer Contribution for Employees | B11: Select employer contribution for employees | E11: =IF(GroupSize_DualPPO>49,"50-99",IF(AND(GroupSize_DualPPO<50,GroupSize_DualPPO>9),"10-49",IF(AND(GroupSize_DualPPO>4,GroupSize_DualPPO<10),"5-9",IF(GroupSize_DualPPO>1,"2-4","")))) ->  | F11: =SUM(GroupSize_DualPPO+GroupSize_DualHMO) -> 0 | G11: Enrolling Employees | I11: =IF(OR(K9<>"",K10<>"",K13<>"",K16<>"",K5<>"",L13<>""),1,0) -> 0 | J11: Better/BetterPlus/Best Eligible
A12: Eligible Employees | B12: Enter your group size | E12: =IF(GroupSize_DualHMO>49,"50-99",IF(AND(GroupSize_DualHMO<50,GroupSize_DualHMO>9),"10-49",IF(AND(GroupSize_DualHMO>1,GroupSize_DualHMO<10),"2-9",""))) ->  | G12: DPPO | H12: DHMO
A13: DPPO Region | B13: Select your NY DPPO Region | E13: Number of Single | G13: 0 | H13: 0 | I13: =IF(SUM(G13:G15)<2,"0","1") -> 0 | J13: =IF(GroupSize_DualPPO<5,"0","1") -> 0 | K13: =IF(GroupSize_DualTotal=0,"",IF(J15="Yes","","CoPower ONE Better, Better Plus, and Best: Dual Choice requires a minimum of 5 enrolled on DPPO and 2 enrolled on DHMO.")) ->  | L13: =IF(GroupSize_DualTotal=0,"",IF(OR(Dual_ERContribution="Select employer contribution for employees",HP_EligibleEEs="Enter your group size"),"Incomplete information. Select employer contribution / Enter eligible employees.",IF(Dual_ERContribution="51-99% (51+ Eligible)",IF((0.75*HP_EligibleEEs)>GroupSize_DualTotal,"Employee participation below 75%. CoPower ONE Non-Vol requires minimum 75% participation with 51-99% employer contribution for employees.",""),IF(Dual_ERContribution="75-99% (2-50 Eligible)",IF((0.75*HP_EligibleEEs)>GroupSize_DualTotal,"Employee participation below 75%. CoPower ONE Non-Vol requires minimum 75% participation with 75-99% employer contribution for employees.",""),IF(GroupSize_DualTotal<>HP_EligibleEEs,"Employee Participation not 100%. CoPower ONE Non-Vol requires 100% participation with 100% employer contribution for employees.",""))))) -> 
A14: DHMO Region | B14: Select your NY DHMO Region | E14: Number of Two Party | G14: 0 | H14: 0 | I14: =IF(SUM(H13:H15)<2,"0","1") -> 0 | J14: =IF(GroupSize_DualHMO<2,"0","1") -> 0
A15: SIC Level | B15: Select your SIC Level | E15: Number of Three Party+ | G15: 0 | H15: 0 | I15: =IF(SUM(I13+I14)>=2,"Yes","No") -> No | J15: =IF(SUM(J13+J14)>=2,"Yes","No") -> No
A16: Life Amount3 | B16: Standard Life Amount | E16: Total Enrolling Employees | G16: =SUM(G13+G14+G15) -> 0 | H16: =SUM(H13+H14+H15) -> 0 | J16: =IF(GroupSize_DualTotal>3,"Yes","No") -> No | K16: =IF(OR(AND(OR(PPO_EligibleEEs="Enter Number of Employees",PPO_EligibleEEs="2-9 Employees"),OR(B16="Enhanced Life $50,000",B16="Enhanced Life $100,000",B16="Enhanced Life $150,000")),AND((SUM(G16:H16)<10),OR(B16="Enhanced Life $50,000",B16="Enhanced Life $100,000",B16="Enhanced Life $150,000"))),"Enhanced Life is only available for CoPower ONE plans with 10+ enrolling employees.","") -> 
A17: .
A18: Cost Comparison - Monthly Rates
A20: =IF(OR(B16="Enhanced Life $50,000",B16="Enhanced Life $100,000",B16="Enhanced Life $150,000"),CONCATENATE(Region_HP_PPO,SIC_HP,Life_HP,E10),CONCATENATE(Region_HP_PPO,SIC_HP,Life_HP,E11)) -> Select your NY DPPO RegionSelect your SIC LevelStandard Life Amount | B20: =IF(OR(B16="Enhanced Life $50,000",B16="Enhanced Life $100,000",B16="Enhanced Life $150,000"),CONCATENATE(Region_HP_HMO,Life_HP,E10),CONCATENATE(Region_HP_HMO,Life_HP,E12)) -> Select your NY DHMO RegionStandard Life Amount | C20: Good | E20: Better | G20: Better Plus | I20: Best
A21: DPPO Enrollment
A22: Single | C22: =IF(I10=1,"",_xlfn.IFNA(VLOOKUP(AreaSIC_SelectionPPO,List_RateTable_PPO,2,FALSE),"")) ->  | E22: =IF(I11=1,"",_xlfn.IFNA(VLOOKUP(AreaSIC_SelectionPPO,List_RateTable_PPO,5,FALSE),"")) ->  | G22: =IF(I11=1,"",_xlfn.IFNA(VLOOKUP(AreaSIC_SelectionPPO,List_RateTable_PPO,8,FALSE),"")) ->  | I22: =IF(I11=1,"",_xlfn.IFNA(VLOOKUP(AreaSIC_SelectionPPO,List_RateTable_PPO,11,FALSE),"")) -> 
A23: Two Party | C23: =IF(I10=1,"",_xlfn.IFNA(VLOOKUP(AreaSIC_SelectionPPO,List_RateTable_PPO,3,FALSE),"")) ->  | E23: =IF(I11=1,"",_xlfn.IFNA(VLOOKUP(AreaSIC_SelectionPPO,List_RateTable_PPO,6,FALSE),"")) ->  | G23: =IF(I11=1,"",_xlfn.IFNA(VLOOKUP(AreaSIC_SelectionPPO,List_RateTable_PPO,9,FALSE),"")) ->  | I23: =IF(I11=1,"",_xlfn.IFNA(VLOOKUP(AreaSIC_SelectionPPO,List_RateTable_PPO,12,FALSE),"")) -> 
A24: Three Party+ | C24: =IF(I10=1,"",_xlfn.IFNA(VLOOKUP(AreaSIC_SelectionPPO,List_RateTable_PPO,4,FALSE),"")) ->  | E24: =IF(I11=1,"",_xlfn.IFNA(VLOOKUP(AreaSIC_SelectionPPO,List_RateTable_PPO,7,FALSE),"")) ->  | G24: =IF(I11=1,"",_xlfn.IFNA(VLOOKUP(AreaSIC_SelectionPPO,List_RateTable_PPO,10,FALSE),"")) ->  | I24: =IF(I11=1,"",_xlfn.IFNA(VLOOKUP(AreaSIC_SelectionPPO,List_RateTable_PPO,13,FALSE),"")) ->  | L24: =IFERROR(IF(I10=1,"",IF(GroupSize_DualPPO>0,SUM(($G$13*C22)+($G$14*C23)+($G$15*C24)),0)),"") -> 0 | M24: =IFERROR(IF(I11=1,"",IF(GroupSize_DualPPO>0,SUM(($G$13*E22)+($G$14*E23)+($G$15*E24)),0)),"") -> 0 | N24: =IFERROR(IF(I11=1,"",IF(GroupSize_DualPPO>0,SUM(($G$13*G22)+($G$14*G23)+($G$15*G24)),0)),"") -> 0 | O24: =IFERROR(IF(I11=1,"",IF(GroupSize_DualPPO>0,SUM(($G$13*I22)+($G$14*I23)+($G$15*I24)),0)),"") -> 0
A25: DHMO Enrollment
A26: Single | C26: =IF(I10=1,"",_xlfn.IFNA(VLOOKUP(AreaSIC_SelectionHMO,List_RateTable_HMO,2,FALSE),"")) ->  | E26: =IF(I11=1,"",_xlfn.IFNA(VLOOKUP(AreaSIC_SelectionHMO,List_RateTable_HMO,5,FALSE),"")) ->  | G26: =IF(I11=1,"",_xlfn.IFNA(VLOOKUP(AreaSIC_SelectionHMO,List_RateTable_HMO,5,FALSE),"")) ->  | I26: =IF(I11=1,"",_xlfn.IFNA(VLOOKUP(AreaSIC_SelectionHMO,List_RateTable_HMO,8,FALSE),"")) -> 
A27: Two Party | C27: =IF(I10=1,"",_xlfn.IFNA(VLOOKUP(AreaSIC_SelectionHMO,List_RateTable_HMO,3,FALSE),"")) ->  | E27: =IF(I11=1,"",_xlfn.IFNA(VLOOKUP(AreaSIC_SelectionHMO,List_RateTable_HMO,6,FALSE),"")) ->  | G27: =IF(I11=1,"",_xlfn.IFNA(VLOOKUP(AreaSIC_SelectionHMO,List_RateTable_HMO,6,FALSE),"")) ->  | I27: =IF(I11=1,"",_xlfn.IFNA(VLOOKUP(AreaSIC_SelectionHMO,List_RateTable_HMO,9,FALSE),"")) -> 
A28: Three Party+ | C28: =IF(I10=1,"",_xlfn.IFNA(VLOOKUP(AreaSIC_SelectionHMO,List_RateTable_HMO,4,FALSE),"")) ->  | E28: =IF(I11=1,"",_xlfn.IFNA(VLOOKUP(AreaSIC_SelectionHMO,List_RateTable_HMO,7,FALSE),"")) ->  | G28: =IF(I11=1,"",_xlfn.IFNA(VLOOKUP(AreaSIC_SelectionHMO,List_RateTable_HMO,7,FALSE),"")) ->  | I28: =IF(I11=1,"",_xlfn.IFNA(VLOOKUP(AreaSIC_SelectionHMO,List_RateTable_HMO,10,FALSE),"")) ->  | L28: =IFERROR(IF(I10=1,"",IF(GroupSize_DualHMO>0,SUM(($H$13*C26)+($H$14*C27)+($H$15*C28)),0)),"") -> 0 | M28: =IFERROR(IF(I11=1,"",IF(GroupSize_DualHMO>0,SUM(($H$13*E26)+($H$14*E27)+($H$15*E28)),0)),"") -> 0 | N28: =IFERROR(IF(I11=1,"",IF(GroupSize_DualHMO>0,SUM(($H$13*G26)+($H$14*G27)+($H$15*G28)),0)),"") -> 0 | O28: =IFERROR(IF(I11=1,"",IF(GroupSize_DualHMO>0,SUM(($H$13*I26)+($H$14*I27)+($H$15*I28)),0)),"") -> 0
A29: Total Cost | C29: =IFERROR(IF(I10=1,"",SUM(L24+L28)),"") -> 0 | E29: =IFERROR(IF(I11=1,"",SUM(M24+M28)),"") -> 0 | G29: =IFERROR(IF(I11=1,"",SUM(N24+N28)),"") -> 0 | I29: =IFERROR(IF(I11=1,"",SUM(O24+O28)),"") -> 0
A31: Benefit Comparison
C33: Good | E33: Better | G33: Better Plus | I33: Best
C34: In Network | D34: Out of Network | E34: In Network | F34: Out of Network | G34: In Network | H34: Out of Network | I34: In Network | J34: Out of Network
A35: DPPO - Delta Dental | C35: Delta Dental DPPO4 | G35: Delta Dental DPPO + Premier 5
A36: Calendar Maximum (per patient) | C36: $1,000 | D36: $750 | E36: $1,500 | F36: $1,250 | G36: $1,500 | H36: $1,250 | I36: $2,000 | J36: $1,500
A37: Deductible (per patient) | C37: $50 | D37: $75 | E37: $50 | F37: $75 | G37: $50 | H37: $75 | I37: $50 | J37: $75
A38: Deductible Waived for Diagnostic & Preventive | C38: Yes | D38: No | E38: Yes | F38: No | G38: Yes | H38: No | I38: Yes
A39: Diagnostic and Preventive Services | C39: 100% | D39: 50% | E39: 100% | F39: 80% | G39: 100% | H39: 80% | I39: 100%
A40: Basic, Oral Surgery, Endodontics and Periodontics | C40: 80% | D40: 50% | E40: 80% | G40: 80% | I40: 80%
A41: Major Services | C41: 50% | E41: 50% | G41: 50% | I41: 50%
A42: Orthodontics-Children Only (Available to groups with 5+ enrolled) | C42: Not available | E42: 50% lifetime max $1,000 | G42: 50% lifetime max $1,000 | I42: 50% lifetime max $1,000
A43: DHMO - DeltaCare® USA | C43: DeltaCare® USA Plan 13B
A44: Calendar Maximum | C44: None | J44: None
A45: Deductible | C45: None | J45: None
A46: Diagnostic & Preventive | C46: Exams, x-rays, cleanings, and flouride treatments | J46: No cost
A47: Restorative | C47: Fillings (amalgan cost per surface) Crown – porcelain fused to high noble metal; full cast high noble metal | J47: No cost $355 copay
A48: Periodontics | C48: Periodontic scaling & root planing—four or more teeth per quadrant | J48: $50 copay
A49: Endodontics | C49: Root canal – anterior (excluding final restoration) Root canal – molar (excluding final restoration) | J49: $95 copay $335 copay
A50: Oral Surgery | C50: Extraction, erupted tooth or exposed root Removal of impacted tooth – completely boney | J50: $5 copay $95 copay
A51: Prosthodontics | C51: Complete denture – maxillary Maxillary partial denture – resin base | J51: $285 copay $245 copay
A52: Orthodontics | C52: Child Adult | J52: $1,900 copay $2,100 copay
C54: Good | E54: Better | G54: Better Plus | I54: Best
A55: Vision - Vision Service Plan
A56: Annual Copayment | C56: $25 exam/$25 materials | E56: $10 exam/$25 materials | G56: $10 exam/$25 materials | I56: $10 exam/$25 materials
A57: Eye Exam | C57: Covered in full* | D57: Reimbursed up to $45 | E57: Covered in full* | F57: Reimbursed up to $45 | G57: Covered in full* | H57: Reimbursed up to $45 | I57: Covered in full* | J57: Reimbursed up to $45
A58: Single-Vision Lenses | C58: Covered in full* | D58: Reimbursed up to $30 | E58: Covered in full* | F58: Reimbursed up to $30 | G58: Covered in full* | H58: Reimbursed up to $30 | I58: Covered in full* | J58: Reimbursed up to $30
A59: Bifocal Lenses | C59: Covered in full* | D59: Reimbursed up to $50 | E59: Covered in full* | F59: Reimbursed up to $50 | G59: Covered in full* | H59: Reimbursed up to $50 | I59: Covered in full* | J59: Reimbursed up to $50
A60: Trifocal Lenses | C60: Covered in full* | D60: Reimbursed up to $65 | E60: Covered in full* | F60: Reimbursed up to $65 | G60: Covered in full* | H60: Reimbursed up to $65 | I60: Covered in full* | J60: Reimbursed up to $65
A61: Frames | C61: $150 allowance | D61: Reimbursed up to $70 | E61: $150 allowance | F61: Reimbursed up to $70 | G61: $150 allowance | H61: Reimbursed up to $70 | I61: $175 allowance | J61: Reimbursed up to $70
A62: Contact Lenses | C62: $150 allowance | D62: Reimbursed up to $105 | E62: $150 allowance | F62: Reimbursed up to $105 | G62: $150 allowance | H62: Reimbursed up to $105 | I62: $175 allowance | J62: Reimbursed up to $105
A63: Vision - Frequency
A64: Eye Exam | C64: 12 months | E64: 12 months | G64: 12 months | I64: 12 months
A65: Lenses | C65: 24 months | E65: 12 months | G65: 12 months | I65: 12 months
A66: Frames | C66: 24 months | E66: 24 months | G66: 24 months | I66: 12 months
A67: Contact Lenses (in lieu of lenses and a frame) | C67: 24 months | E67: 12 months | G67: 12 months | I67: 12 months
A68: Life - UNUM
A69: Basic Group Term Life with AD&D and EAP | C69: =IF($B$16="Standard Life Amount","$15,000 policy",$B$16) -> $15,000 policy | E69: =IF($B$16="Standard Life Amount","$20,000 policy",$B$16) -> $20,000 policy | G69: =IF($B$16="Standard Life Amount","$20,000 policy",$B$16) -> $20,000 policy | I69: =IF($B$16="Standard Life Amount","$25,000 policy",$B$16) -> $25,000 policy
A70: 1 Groups of 4 may elect CoPower ONE Good, with 2 enrolled employees on the DPPO plan and a minimum of 2 on the DHMO plan. Dual Choice with CoPower ONE Better, Better Plus, and Best plans requires a minimum of 5 enrolled employees on the DPPO plan and a minimum of 2 on the DHMO plan. Bundles cannot be mixed. CoPower ONE Good DPPO will pair with CoPower ONE Good DHMO. Better Plus DPPO will pair with Better DHMO.
A71: 2 1-year rate guarantee
A72: 3 Employers with 10 or more enrolling employees have the option of substituting the standard group term life policy amounts with either a $50,000, $100,000 or $150,000 policy for an additional charge
A73: 4 Delta Dental DPPO: All dentists (in- and out-of-network) are reimbursed at the lesser of the submitted charge or the DPPO provider's contracted fee.
A74: 5 Delta Dental DPPO + Premier: DPPO dentists are reimbursed at the lesser of the submitted charge or the DPPO provider's contracted fee. Delta Dental Premier dentists are reimbursed at the lesser of the submitted charge or the Premier provider's contracted fee. Non-contracted dentists are reimbursed at the lesser of the submitted charge or the plan contract allowance.
A75: *After Copay
A77: Presented by
A79: **Enter your contact information here.** | H79: License #
A81: This document is not meant to replace a quote and does not include all exclusions, limitations or program guidelines. While the information and rates provided here are believed to be accurate as of the print date, they are subject to change without notice. For the most up-to-date information, contact CoPower. CoPower ONE plans are not available to groups currently insured with UNUM.

Sheet CoPower ONE MPB Dual Choice
I5: =IF(AND(VOL_EligibleEEs<>"Enter your group size",GroupSize_DualVOLTotal>VOL_EligibleEEs),"Total enrolling employees higher than eligible employees. Change eligible or enrolling employees.","") -> 
K6: <= Enrolled vs Eligible Check (If Enrollled > Eligible)
L7: =IF(VolPPO_Ortho="With Ortho",1,IF(DUALCHOICE_VOL="YES",IF(OR(I5<>"",I17<>""),1,0),IF(OR(I10<>"",I5<>""),1,0))) -> 0 | M7: PPO W/O Ortho
L8: =IF(VolPPO_Ortho="Without Ortho",1,IF(DUALCHOICE_VOL="YES",IF(OR(I5<>"",I17<>"",I11<>""),1,0),IF(OR(E24="PPO With Ortho (Not Available)",I11<>"",I10<>"",I5<>""),1,0))) -> 1 | M8: PPO W Ortho
A9: Company Information | L9: =IF(DUALCHOICE_VOL="YES",IF(OR(I5<>"",I17<>"",I13<>""),1,0),IF(OR(I13<>"",I5<>""),1,0)) -> 0 | M9: DHMO MPB
A10: Company Name: | I10: =IF(DUALCHOICE_VOL="YES","",IF(VOL_EligibleEEs="Enter your group size","",IF(M10="1","","CoPower ONE MPB DPPO requires a minimum of 5 enrolled."))) ->  | L10: =IF(GroupSize_DualVOLPPO<5,"0","1") -> 0 | M10: =IF(GroupSize_DualVOLPPO<5,"0","1") -> 0
A11: Effective Date: | B11: Select your effective date | I11: =IF(VOL_EligibleEEs="Enter your group size","",IF(GroupSize_DualVOLPPO>24,"","CoPower ONE MPB DPPO with Ortho requires a minimum of 25 enrolled.")) ->  | L11: =IF(GroupSize_DualVOLHMO<2,"0","1") -> 0 | M11: =IF(GroupSize_DualVOLHMO<2,"0","1") -> 0
A12: Employer Contribution for Employees | B12: Less than 75% | E12: =SUM(GroupSize_DualVOLPPO+GroupSize_DualVOLHMO) -> 0 | F12: Enrolling Employees | L12: =IF(SUM(L10+L11)>=2,"Yes","No") -> No | M12: =IF(SUM(M10+M11)>=1,"Yes","No") -> No
A13: Eligible Employees | B13: Enter your group size | F13: DPPO | G13: DHMO | I13: =IF(VOL_EligibleEEs<>"Enter your group size",IF(M11="1","","CoPower ONE MPB DHMO requires a minimum of 2 enrolled."),"") ->  | L13: =IF(OR(I17<>"",I5<>""),1,0) -> 0 | M13: Dual Choice MPB
A14: DPPO Region | B14: Select your NY DPPO Region | D14: Number of Single | F14: 0 | G14: 0 | K14: <= DHMO Check (Minimum 2 Enrolled)
A15: DHMO Region | B15: Select your NY DHMO Region | D15: Number of Two Party | F15: 0 | G15: 0
A16: SIC Level | B16: Select your SIC Level | D16: Number of Three Party+ | F16: 0 | G16: 0
A17: Dual Choice? (Requires minimum 10+ enrollees) | B17: No | D17: Total Enrolling Employees | F17: =SUM(F14+F15+F16) -> 0 | G17: =SUM(G14+G15+G16) -> 0 | I17: =IF(OR(DUALCHOICE_VOL="Select Dual Choice (Required)",DUALCHOICE_VOL="No",VOL_EligibleEEs="Enter your group size"),"",IF(AND(GroupSize_DualVOLTotal>9,M12="Yes",GroupSize_DualVOLPPO>4,GroupSize_DualVOLHMO>1),"","CoPower ONE MPB Dual Choice requires minimum of 10 enrolled, with minimum of 5 enrolled in one plan and remainder in the other.")) ->  | K17: <= Dual Choice: 10 total enrolled, 5 on one plan check
A18: Ortho? (Requires minimum 25+ enrollees on DPPO) | B18: Without Ortho
A21: Cost Comparison - Monthly Rates
A22: =IF(OR(VOL_EligibleEEs="Enter your group size",DUALCHOICE_VOL="Select Dual Choice (Required)",VolPPO_Ortho="Select Ortho (Required)"),"",CONCATENATE(Region_VOL_PPO,SIC_VOL,"WithOrtho")) ->  | C22: =CONCATENATE(Region_VOL_PPO,SIC_VOL,"WithOrtho") -> Select your NY DPPO RegionSelect your SIC LevelWithOrtho
A24: =IF(OR(VOL_EligibleEEs="Enter your group size",DUALCHOICE_VOL="Select Dual Choice (Required)",VolPPO_Ortho="Select Ortho (Required)"),"",CONCATENATE(Region_VOL_PPO,SIC_VOL,"WithoutOrtho")) ->  | B24: =IF(OR(VOL_EligibleEEs="Enter your group size",DUALCHOICE_VOL="Select Dual Choice (Required)",VolPPO_Ortho="Select Ortho (Required)"),"",Region_VOL_HMO) ->  | C24: CoPower ONE MPB
A25: DPPO MPB Enrollment | C25: DPPO Without Ortho | F25: =IF(GroupSize_DualVOLPPO<25,"DPPO With Ortho (Not Available)",IF(AND(GroupSize_DualVOLPPO>24,VolPPO_Ortho="Without Ortho"),"DPPO With Ortho (Not Selected)","DPPO With Ortho")) -> DPPO With Ortho (Not Available)
A26: Single | C26: =IF(L7=1,"",_xlfn.IFNA(VLOOKUP(AreaSIC_SelectionVOLPPO,List_RateTable_VOLPPO,2,FALSE),"")) ->  | F26: =IF(L8=1,"",_xlfn.IFNA(VLOOKUP(A22,List_RateTable_VOLPPO,2,FALSE),"")) -> 
A27: Two Party | C27: =IF(L7=1,"",_xlfn.IFNA(VLOOKUP(AreaSIC_SelectionVOLPPO,List_RateTable_VOLPPO,3,FALSE),"")) ->  | F27: =IF(L8=1,"",_xlfn.IFNA(VLOOKUP(A22,List_RateTable_VOLPPO,3,FALSE),"")) -> 
A28: Three Party+ | C28: =IF(L7=1,"",_xlfn.IFNA(VLOOKUP(AreaSIC_SelectionVOLPPO,List_RateTable_VOLPPO,4,FALSE),"")) ->  | F28: =IF(L8=1,"",_xlfn.IFNA(VLOOKUP(A22,List_RateTable_VOLPPO,4,FALSE),"")) -> 
A29: Total Cost-DPPO Only | C29: =IF(C26="","",IFERROR(IF(L7=1,"",SUM(L29)),"")) ->  | F29: =IF(F26="","",IFERROR(IF(L8=1,"",SUM(M29)),"")) ->  | L29: =IFERROR(IF(L7=1,"",IF(GroupSize_DualVOLPPO>0,SUM(($F$14*C26)+($F$15*C27)+($F$16*C28)),0)),"") -> 0 | M29: =IFERROR(IF(L8=1,"",IF(GroupSize_DualVOLPPO>0,SUM(($F$14*F26)+($F$15*F27)+($F$16*F28)),0)),"") -> 
A31: DHMO MPB Enrollment
A32: Single | C32: =IF(OR(E24="PPO With Ortho",VolPPO_Ortho="With Ortho"),"",IF(DUALCHOICE_VOL="YES",IF(OR(L9=1,L13=1),"",_xlfn.IFNA(VLOOKUP(AreaSIC_SelectionVOLHMO,List_RateTable_VOLHMO,2,FALSE),"")),IF(L9=1,"",_xlfn.IFNA(VLOOKUP(AreaSIC_SelectionVOLHMO,List_RateTable_VOLHMO,2,FALSE),"")))) ->  | F32: =IF(F25="DPPO With Ortho (Not Selected)","",IF(OR(F25="DPPO With Ortho (Not Available)",L9=1),"",_xlfn.IFNA(VLOOKUP(AreaSIC_SelectionVOLHMO,List_RateTable_VOLHMO,2,FALSE),""))) -> 
A33: Two Party | C33: =IF(OR(E24="PPO With Ortho",VolPPO_Ortho="With Ortho"),"",IF(DUALCHOICE_VOL="YES",IF(OR(L9=1,L13=1),"",_xlfn.IFNA(VLOOKUP(AreaSIC_SelectionVOLHMO,List_RateTable_VOLHMO,3,FALSE),"")),IF(L9=1,"",_xlfn.IFNA(VLOOKUP(AreaSIC_SelectionVOLHMO,List_RateTable_VOLHMO,3,FALSE),"")))) ->  | F33: =IF(F25="DPPO With Ortho (Not Selected)","",IF(OR(F25="DPPO With Ortho (Not Available)",L9=1),"",_xlfn.IFNA(VLOOKUP(AreaSIC_SelectionVOLHMO,List_RateTable_VOLHMO,3,FALSE),""))) -> 
A34: Three Party+ | C34: =IF(OR(E24="PPO With Ortho",VolPPO_Ortho="With Ortho"),"",IF(DUALCHOICE_VOL="YES",IF(OR(L9=1,L13=1),"",_xlfn.IFNA(VLOOKUP(AreaSIC_SelectionVOLHMO,List_RateTable_VOLHMO,4,FALSE),"")),IF(L9=1,"",_xlfn.IFNA(VLOOKUP(AreaSIC_SelectionVOLHMO,List_RateTable_VOLHMO,4,FALSE),"")))) ->  | F34: =IF(F25="DPPO With Ortho (Not Selected)","",IF(OR(F25="DPPO With Ortho (Not Available)",L9=1),"",_xlfn.IFNA(VLOOKUP(AreaSIC_SelectionVOLHMO,List_RateTable_VOLHMO,4,FALSE),""))) -> 
A35: Total Cost-DHMO Only | C35: =IF(C32="","",IFERROR(IF(L9=1,"",SUM(L35)),"")) ->  | F35: =IF(F32="","",IFERROR(IF(OR(F25="With Ortho (Not Available)",L9=1),"",SUM(M35)),"")) ->  | L35: =IFERROR(IF(L9=1,"",IF(GroupSize_DualVOLHMO>0,SUM(($G$14*C32)+($G$15*C33)+($G$16*C34)),0)),"") -> 0 | M35: =IFERROR(IF(L9=1,"",IF(GroupSize_DualVOLHMO>0,SUM(($G$14*F32)+($G$15*F33)+($G$16*F34)),0)),"") -> 0
A37: Total Cost-Dual Choice MPB | C37: =IF((VOL_EligibleEEs<GroupSize_DualVOLTotal),"",IF(B17="Select Dual Choice (Required)","Select Dual Choice Above",IF(DUALCHOICE_VOL="No","No Dual Choice",IF(OR(GroupSize_DualVOLPPO=0,L13=1),"Not Eligible for Dual Choice",IFERROR(SUM(C35+C29),""))))) -> No Dual Choice | F37: =IF((VOL_EligibleEEs<GroupSize_DualVOLTotal),"",IF(B17="Select Dual Choice (Required)","Select Dual Choice Above",IF(DUALCHOICE_VOL="No","No Dual Choice",IF(OR(GroupSize_DualVOLPPO=0,L13=1),"Not Eligible for Dual Choice",IFERROR(SUM(F35+F29),""))))) -> No Dual Choice
A39: Benefit Comparison
C41: CoPower ONE MPB PPO
C42: DPPO Dentists | F42: Non-DPPO Dentists
A43: DPPO MPB - Delta Dental | C43: Delta Dental DPPO3
A44: Calendar Year Max (per patient) | C44: $1,500 | F44: $1,250
A45: Calendar Year Deductible (per patient) | C45: $50 | F45: $75
A46: Deductible Waived for Diagnostic & Preventive | C46: Yes | F46: No
A47: Diagnostic and Preventive Services | B47: First 12 Months | C47: 100% | F47: 80%
A48: Basic Services (Sealants, Simple Restorations, & Simple Extractions) | C48: 80%
A49: Oral Surgery, Endodontics and Periodontics | B49: Second 12 Months | C49: 50%
A50: Major Services | C50: 50%
A51: Orthodontics-Children Only (Available to groups with 25+ enrolled) | C51: =IF(VolPPO_Ortho="Select Ortho (Required)","Not Available",IF(AND(GroupSize_DualVOLTotal>24,VolPPO_Ortho="Without Ortho"),"None (No Ortho)",IF(AND(GroupSize_DualVOLTotal<25,VolPPO_Ortho="Without Ortho"),"Not Available","50% lifetime max $1,000"))) -> Not Available
C53: CoPower ONE MPB DHMO
A54: DHMO MPB - DeltaCare® USA | C54: DeltaCare® USA Plan 13B
A55: Calendar Maximum | C55: None | G55: None
A56: Deductible | C56: None | G56: None
A57: Diagnostic & Preventive | C57: Exams, x-rays, cleanings, and flouride treatments | G57: No cost
A58: Restorative | C58: Fillings (amalgan cost per surface) Crown – porcelain fused to high noble metal; full cast high noble metal | G58: No cost $355 copay
A59: Periodontics | C59: Periodontic scaling & root planing—four or more teeth per quadrant | G59: $50 copay
A60: Endodontics | C60: Root canal – anterior (excluding final restoration) Root canal – molar (excluding final restoration) | G60: $95 copay $335 copay
A61: Oral Surgery | C61: Extraction, erupted tooth or exposed root Removal of impacted tooth – completely boney | G61: $5 copay $95 copay
A62: Prosthodontics | C62: Complete denture – maxillary Maxillary partial denture – resin base | G62: $285 copay $245 copay
A63: Orthodontics | C63: Child Adult | G63: $1,900 copay $2,100 copay
C66: CoPower ONE MPB
A67: Vision - Vision Service Plan | C67: In Network | F67: Out of Network
A68: Annual Copayment | C68: $10 exam / $25 materials
A69: Eye Exam | C69: Covered in full* | F69: Reimbursed up to $45
A70: Single-Vision Lenses | C70: Covered in full* | F70: Reimbursed up to $30
A71: Bifocal Lenses | C71: Covered in full* | F71: Reimbursed up to $50
A72: Trifocal Lenses | C72: Covered in full* | F72: Reimbursed up to $65
A73: Frames | C73: $200 allowance | F73: Reimbursed up to $70
A74: Contact Lenses | C74: $200 allowance | F74: Reimbursed up to $105
A75: Vision - Frequency
A76: Eye Exam | C76: 12 months
A77: Lenses | C77: 12 months
A78: Frames | C78: 12 months
A79: Contact Lenses (in lieu of lenses and a frame) | C79: 12 months
A80: Life - UNUM
A81: Basic Group Term Life with AD&D and EAP | C81: N/A
A83: 1 Dual choice Minimum Participation Base (MPB) Delta Dental DPPO and MPB DeltaCare® USA DHMO available for groups of 10+ enrolling - minimum of 5 enrolled in one plan and remainder in the other
A84: 2 1-year rate guarantee
A85: 3 Delta Dental DPPO: All dentists (in- and out-of-network) are reimbursed at the lesser of the submitted charge or the DPPO provider's contracted fee.
A86: * After Copay
A88: Presented by
A90: **Enter your contact information here.** | F90: License #
A92: This document is not meant to replace a quote and does not include all exclusions, limitations or program guidelines. While the information and rates provided here are believed to be accurate as of the print date, they are subject to change without notice. For the most up-to-date information, contact CoPower. CoPower ONE plans are not available to groups currently insured with UNUM.

Sheet Lists (hidden)
A1: List_Area_PPO | B1: List_SIC | D1: List_RateTable_PPO | E1: GOOD | H1: BETTER | K1: BETTER PLUS | N1: BEST
A2: Select your NY DPPO Region | B2: Select your SIC Level | D2: Region 31Standard Life Amount5-9 | E2: 33.5 | F2: 59.5 | G2: 82.5 | H2: 42 | I2: 75 | J2: 108 | K2: 47 | L2: 86.5 | M2: 124 | N2: 55 | O2: 99 | P2: 142.5
A3: Region 1 | B3: 1 | D3: Region 32Standard Life Amount5-9 | E3: 36 | F3: 66 | G3: 91.5 | H3: 46 | I3: 83.5 | J3: 120.5 | K3: 51.5 | L3: 96 | M3: 138.5 | N3: 59.5 | O3: 110.5 | P3: 159
A4: Region 2 | B4: 2 | D4: Region 21Standard Life Amount5-9 | E4: 42 | F4: 76.5 | G4: 107.5 | H4: 51.5 | I4: 98 | J4: 141.5 | K4: 59.5 | L4: 113.5 | M4: 163.5 | N4: 68 | O4: 129 | P4: 187
A5: Region 3 | D5: Region 22Standard Life Amount5-9 | E5: 46 | F5: 86 | G5: 120 | H5: 57.5 | I5: 109.5 | J5: 158 | K5: 66 | L5: 126.5 | M5: 183.5 | N5: 76 | O5: 144 | P5: 210
D6: Region 11Standard Life Amount5-9 | E6: 44 | F6: 81.5 | G6: 113.5 | H6: 54.5 | I6: 102.5 | J6: 149 | K6: 60.5 | L6: 115 | M6: 166.5 | N6: 69 | O6: 131 | P6: 189.5
D7: Region 12Standard Life Amount5-9 | E7: 48.5 | F7: 91 | G7: 127 | H7: 60.5 | I7: 115 | J7: 167.5 | K7: 67 | L7: 129.5 | M7: 187.5 | N7: 77 | O7: 147 | P7: 214
D9: Region 31Standard Life Amount10-49 | E9: 33.5 | F9: 59.5 | G9: 82.5 | H9: 42 | I9: 75 | J9: 108 | K9: 47 | L9: 86.5 | M9: 124 | N9: 55 | O9: 99 | P9: 142.5
D10: Region 32Standard Life Amount10-49 | E10: 36 | F10: 66 | G10: 91.5 | H10: 46 | I10: 83.5 | J10: 120.5 | K10: 51.5 | L10: 96 | M10: 138.5 | N10: 59.5 | O10: 110.5 | P10: 159
D11: Region 21Standard Life Amount10-49 | E11: 42 | F11: 76.5 | G11: 107.5 | H11: 51.5 | I11: 98 | J11: 141.5 | K11: 59.5 | L11: 113.5 | M11: 163.5 | N11: 68 | O11: 129 | P11: 187
A12: List_EffDate | B12: List_LifeAmounts | D12: Region 22Standard Life Amount10-49 | E12: 46 | F12: 86 | G12: 120 | H12: 57.5 | I12: 109.5 | J12: 158 | K12: 66 | L12: 126.5 | M12: 183.5 | N12: 76 | O12: 144 | P12: 210
A13: Select your effective date | B13: Standard Life Amount | D13: Region 11Standard Life Amount10-49 | E13: 44 | F13: 81.5 | G13: 113.5 | H13: 54.5 | I13: 102.5 | J13: 149 | K13: 60.5 | L13: 115 | M13: 166.5 | N13: 69 | O13: 131 | P13: 189.5
A14: 2023-01-01 | B14: Enhanced Life $50,000 | D14: Region 12Standard Life Amount10-49 | E14: 48.5 | F14: 91 | G14: 127 | H14: 60.5 | I14: 115 | J14: 167.5 | K14: 67 | L14: 129.5 | M14: 187.5 | N14: 77 | O14: 147 | P14: 214
A15: 2/1/2023 | B15: Enhanced Life $100,000
A16: 3/1/2023 | B16: Enhanced Life $150,000 | D16: Region 31Standard Life Amount50-99 | E16: 33.5 | F16: 59.5 | G16: 82.5 | H16: 42 | I16: 75 | J16: 108 | K16: 47 | L16: 86.5 | M16: 124 | N16: 55 | O16: 99 | P16: 142.5
A17: 4/1/2023 | D17: Region 32Standard Life Amount50-99 | E17: 36 | F17: 66 | G17: 91.5 | H17: 46 | I17: 83.5 | J17: 120.5 | K17: 51.5 | L17: 96 | M17: 138.5 | N17: 59.5 | O17: 110.5 | P17: 159
A18: 5/1/2023 | D18: Region 21Standard Life Amount50-99 | E18: 42 | F18: 76.5 | G18: 107.5 | H18: 51.5 | I18: 98 | J18: 141.5 | K18: 59.5 | L18: 113.5 | M18: 163.5 | N18: 68 | O18: 129 | P18: 187
A19: 6/1/2023 | D19: Region 22Standard Life Amount50-99 | E19: 46 | F19: 86 | G19: 120 | H19: 57.5 | I19: 109.5 | J19: 158 | K19: 66 | L19: 126.5 | M19: 183.5 | N19: 76 | O19: 144 | P19: 210
A20: 7/1/2023 | D20: Region 11Standard Life Amount50-99 | E20: 44 | F20: 81.5 | G20: 113.5 | H20: 54.5 | I20: 102.5 | J20: 149 | K20: 60.5 | L20: 115 | M20: 166.5 | N20: 69 | O20: 131 | P20: 189.5
A21: 8/1/2023 | D21: Region 12Standard Life Amount50-99 | E21: 48.5 | F21: 91 | G21: 127 | H21: 60.5 | I21: 115 | J21: 167.5 | K21: 67 | L21: 129.5 | M21: 187.5 | N21: 77 | O21: 147 | P21: 214
A22: 9/1/2023
A23: 10/1/2023 | D23: Region 31Standard Life Amount2-4 | E23: 35 | F23: 63 | G23: 88.5 | H23: X | I23: X | J23: X | K23: X | L23: X | M23: X | N23: X | O23: X | P23: X
A24: 11/1/2023 | D24: Region 32Standard Life Amount2-4 | E24: 39 | F24: 71 | G24: 99 | H24: X | I24: X | J24: X | K24: X | L24: X | M24: X | N24: X | O24: X | P24: X
A25: 12/1/2023 | D25: Region 21Standard Life Amount2-4 | E25: 45 | F25: 83.5 | G25: 116 | H25: X | I25: X | J25: X | K25: X | L25: X | M25: X | N25: X | O25: X | P25: X
D26: Region 22Standard Life Amount2-4 | E26: 49.5 | F26: 94 | G26: 129.5 | H26: X | I26: X | J26: X | K26: X | L26: X | M26: X | N26: X | O26: X | P26: X
D27: Region 11Standard Life Amount2-4 | E27: 47 | F27: 88 | G27: 122 | H27: X | I27: X | J27: X | K27: X | L27: X | M27: X | N27: X | O27: X | P27: X
D28: Region 12Standard Life Amount2-4 | E28: 52.5 | F28: 98.5 | G28: 137.5 | H28: X | I28: X | J28: X | K28: X | L28: X | M28: X | N28: X | O28: X | P28: X
A29: List_Area_HMO | B29: List_EligibleEEs
A30: Select your NY DHMO Region | B30: Select your group size | D30: Region 31Enhanced Life $50,00010-49 | E30: =SUM(E9+$E$92) -> 43.3 | F30: =SUM(F9+$E$92) -> 69.3 | G30: 92.3 | H30: =SUM(H9+$H$92) -> 50.4 | I30: 83.4 | J30: 116.4 | K30: 55.4 | L30: 94.9 | M30: 132.4 | N30: =SUM(N9+$K$92) -> 62 | O30: 106 | P30: 149.5
A31: Region 1 | B31: 2-9 Employees | D31: Region 32Enhanced Life $50,00010-49 | E31: 45.8 | F31: 75.8 | G31: 101.3 | H31: 54.4 | I31: 91.9 | J31: 128.9 | K31: 59.9 | L31: 104.4 | M31: 146.9 | N31: 66.5 | O31: 117.5 | P31: 166
A32: Region 2 | B32: 10-99 Employees | D32: Region 21Enhanced Life $50,00010-49 | E32: 51.8 | F32: 86.3 | G32: 117.3 | H32: 59.9 | I32: 106.4 | J32: 149.9 | K32: 67.9 | L32: 121.9 | M32: 171.9 | N32: 75 | O32: 136 | P32: 194
D33: Region 22Enhanced Life $50,00010-49 | E33: 55.8 | F33: 95.8 | G33: 129.8 | H33: 65.9 | I33: 117.9 | J33: 166.4 | K33: 74.4 | L33: 134.9 | M33: 191.9 | N33: 83 | O33: 151 | P33: 217
D34: Region 11Enhanced Life $50,00010-49 | E34: 53.8 | F34: 91.3 | G34: 123.3 | H34: 62.9 | I34: 110.9 | J34: 157.4 | K34: 68.9 | L34: 123.4 | M34: 174.9 | N34: 76 | O34: 138 | P34: 196.5
A35: <51 Eligible | B35: List_ERContributiontoEE | D35: Region 12Enhanced Life $50,00010-49 | E35: 58.3 | F35: 100.8 | G35: 136.8 | H35: 68.9 | I35: 123.4 | J35: 175.9 | K35: 75.4 | L35: 137.9 | M35: 195.9 | N35: 84 | O35: 154 | P35: 221
B36: Select employer contribution for employees
A37: (Minimum 75 % EE Participation Required) | B37: 51-99% (51+ Eligible) | D37: Region 31Enhanced Life $100,00010-49 | E37: =SUM(E9+$E$93) -> 57.3 | F37: =SUM(F9+$E$93) -> 83.3 | G37: 106.3 | H37: =SUM(H9+$H$93) -> 64.4 | I37: 97.4 | J37: 130.4 | K37: 69.4 | L37: 108.9 | M37: 146.4 | N37: =SUM(N9+$K$93) -> 76 | O37: 120 | P37: 163.5
A38: (100 % EE Participation Required) | B38: 75-99% (2-50 Eligible) | D38: Region 32Enhanced Life $100,00010-49 | E38: =SUM(E10+$E$93) -> 59.8 | F38: 89.8 | G38: 115.3 | H38: 68.4 | I38: 105.9 | J38: 142.9 | K38: 73.9 | L38: 118.4 | M38: 160.9 | N38: 80.5 | O38: 131.5 | P38: 180
B39: 1 | D39: Region 21Enhanced Life $100,00010-49 | E39: 65.8 | F39: 100.3 | G39: 131.3 | H39: 73.9 | I39: 120.4 | J39: 163.9 | K39: 81.9 | L39: 135.9 | M39: 185.9 | N39: 89 | O39: 150 | P39: 208
D40: Region 22Enhanced Life $100,00010-49 | E40: 69.8 | F40: 109.8 | G40: 143.8 | H40: 79.9 | I40: 131.9 | J40: 180.4 | K40: 88.4 | L40: 148.9 | M40: 205.9 | N40: 97 | O40: 165 | P40: 231
D41: Region 11Enhanced Life $100,00010-49 | E41: 67.8 | F41: 105.3 | G41: 137.3 | H41: 76.9 | I41: 124.9 | J41: 171.4 | K41: 82.9 | L41: 137.4 | M41: 188.9 | N41: 90 | O41: 152 | P41: 210.5
D42: Region 12Enhanced Life $100,00010-49 | E42: 72.3 | F42: 114.8 | G42: 150.8 | H42: 82.9 | I42: 137.4 | J42: 189.9 | K42: 89.4 | L42: 151.9 | M42: 209.9 | N42: 98 | O42: 168 | P42: 235
D44: Region 31Enhanced Life $150,00010-49 | E44: =SUM(E9+$E$94) -> 71.3 | F44: 97.3 | G44: 120.3 | H44: =SUM(H9+$H$94) -> 78.4 | I44: 111.4 | J44: 144.4 | K44: 83.4 | L44: 122.9 | M44: 160.4 | N44: =SUM(N9+$K$94) -> 90 | O44: 134 | P44: 177.5
D45: Region 32Enhanced Life $150,00010-49 | E45: 73.8 | F45: 103.8 | G45: 129.3 | H45: 82.4 | I45: 119.9 | J45: 156.9 | K45: 87.9 | L45: 132.4 | M45: 174.9 | N45: 94.5 | O45: 145.5 | P45: 194
A46: List_VolDualChoiceSelection | B46: List_VolOrtho | D46: Region 21Enhanced Life $150,00010-49 | E46: 79.8 | F46: 114.3 | G46: 145.3 | H46: 87.9 | I46: 134.4 | J46: 177.9 | K46: 95.9 | L46: 149.9 | M46: 199.9 | N46: 103 | O46: 164 | P46: 222
A47: Select Dual Choice (Required) | B47: Select Ortho (Required) | D47: Region 22Enhanced Life $150,00010-49 | E47: 83.8 | F47: 123.8 | G47: 157.8 | H47: 93.9 | I47: 145.9 | J47: 194.4 | K47: 102.4 | L47: 162.9 | M47: 219.9 | N47: 111 | O47: 179 | P47: 245
A48: Yes | B48: Without Ortho | D48: Region 11Enhanced Life $150,00010-49 | E48: 81.8 | F48: 119.3 | G48: 151.3 | H48: 90.9 | I48: 138.9 | J48: 185.4 | K48: 96.9 | L48: 151.4 | M48: 202.9 | N48: 104 | O48: 166 | P48: 224.5
A49: No | B49: With Ortho | D49: Region 12Enhanced Life $150,00010-49 | E49: 86.3 | F49: 128.8 | G49: 164.8 | H49: 96.9 | I49: 151.4 | J49: 203.9 | K49: 103.4 | L49: 165.9 | M49: 223.9 | N49: 112 | O49: 182 | P49: 249
D51: Region 31Enhanced Life $50,00050-99 | E51: =SUM(E16+$E$96) -> 41.2 | F51: =SUM(F16+$E$96) -> 67.2 | G51: 90.2 | H51: =SUM(H16+$H$96) -> 48.6 | I51: 81.6 | J51: 114.6 | K51: 53.6 | L51: 93.1 | M51: 130.6 | N51: =SUM(N16+$K$96) -> 60.5 | O51: 104.5 | P51: 148
D52: Region 32Enhanced Life $50,00050-99 | E52: =SUM(E17+$E$96) -> 43.7 | F52: 73.7 | G52: 99.2 | H52: 52.6 | I52: 90.1 | J52: 127.1 | K52: 58.1 | L52: 102.6 | M52: 145.1 | N52: 65 | O52: 116 | P52: 164.5
D53: Region 21Enhanced Life $50,00050-99 | E53: 49.7 | F53: 84.2 | G53: 115.2 | H53: 58.1 | I53: 104.6 | J53: 148.1 | K53: 66.1 | L53: 120.1 | M53: 170.1 | N53: 73.5 | O53: 134.5 | P53: 192.5
D54: Region 22Enhanced Life $50,00050-99 | E54: 53.7 | F54: 93.7 | G54: 127.7 | H54: 64.1 | I54: 116.1 | J54: 164.6 | K54: 72.6 | L54: 133.1 | M54: 190.1 | N54: 81.5 | O54: 149.5 | P54: 215.5
D55: Region 11Enhanced Life $50,00050-99 | E55: 51.7 | F55: 89.2 | G55: 121.2 | H55: 61.1 | I55: 109.1 | J55: 155.6 | K55: 67.1 | L55: 121.6 | M55: 173.1 | N55: 74.5 | O55: 136.5 | P55: 195
D56: Region 12Enhanced Life $50,00050-99 | E56: 56.2 | F56: 98.7 | G56: 134.7 | H56: 67.1 | I56: 121.6 | J56: 174.1 | K56: 73.6 | L56: 136.1 | M56: 194.1 | N56: 82.5 | O56: 152.5 | P56: 219.5
D58: Region 31Enhanced Life $100,00050-99 | E58: =SUM(E16+$E$97) -> 52.2 | F58: 78.2 | G58: 101.2 | H58: =SUM(H16+$H$97) -> 59.6 | I58: 92.6 | J58: 125.6 | K58: 64.6 | L58: 104.1 | M58: 141.6 | N58: =SUM(N16+$K$97) -> 71.5 | O58: 115.5 | P58: 159
D59: Region 32Enhanced Life $100,00050-99 | E59: 54.7 | F59: 84.7 | G59: 110.2 | H59: 63.6 | I59: 101.1 | J59: 138.1 | K59: 69.1 | L59: 113.6 | M59: 156.1 | N59: 76 | O59: 127 | P59: 175.5
D60: Region 21Enhanced Life $100,00050-99 | E60: 60.7 | F60: 95.2 | G60: 126.2 | H60: 69.1 | I60: 115.6 | J60: 159.1 | K60: 77.1 | L60: 131.1 | M60: 181.1 | N60: 84.5 | O60: 145.5 | P60: 203.5
D61: Region 22Enhanced Life $100,00050-99 | E61: 64.7 | F61: 104.7 | G61: 138.7 | H61: 75.1 | I61: 127.1 | J61: 175.6 | K61: 83.6 | L61: 144.1 | M61: 201.1 | N61: 92.5 | O61: 160.5 | P61: 226.5
D62: Region 11Enhanced Life $100,00050-99 | E62: 62.7 | F62: 100.2 | G62: 132.2 | H62: 72.1 | I62: 120.1 | J62: 166.6 | K62: 78.1 | L62: 132.6 | M62: 184.1 | N62: 85.5 | O62: 147.5 | P62: 206
D63: Region 12Enhanced Life $100,00050-99 | E63: 67.2 | F63: 109.7 | G63: 145.7 | H63: 78.1 | I63: 132.6 | J63: 185.1 | K63: 84.6 | L63: 147.1 | M63: 205.1 | N63: 93.5 | O63: 163.5 | P63: 230.5
D65: Region 31Enhanced Life $150,00050-99 | E65: =SUM(E16+$E$98) -> 63.2 | F65: 89.2 | G65: 112.2 | H65: =SUM(H16+$H$98) -> 70.6 | I65: 103.6 | J65: 136.6 | K65: 75.6 | L65: 115.1 | M65: 152.6 | N65: =SUM(N16+$K$98) -> 82.5 | O65: 126.5 | P65: 170
D66: Region 32Enhanced Life $150,00050-99 | E66: 65.7 | F66: 95.7 | G66: 121.2 | H66: 74.6 | I66: 112.1 | J66: 149.1 | K66: 80.1 | L66: 124.6 | M66: 167.1 | N66: 87 | O66: 138 | P66: 186.5
D67: Region 21Enhanced Life $150,00050-99 | E67: 71.7 | F67: 106.2 | G67: 137.2 | H67: 80.1 | I67: 126.6 | J67: 170.1 | K67: 88.1 | L67: 142.1 | M67: 192.1 | N67: 95.5 | O67: 156.5 | P67: 214.5
D68: Region 22Enhanced Life $150,00050-99 | E68: 75.7 | F68: 115.7 | G68: 149.7 | H68: 86.1 | I68: 138.1 | J68: 186.6 | K68: 94.6 | L68: 155.1 | M68: 212.1 | N68: 103.5 | O68: 171.5 | P68: 237.5
D69: Region 11Enhanced Life $150,00050-99 | E69: 73.7 | F69: 111.2 | G69: 143.2 | H69: 83.1 | I69: 131.1 | J69: 177.6 | K69: 89.1 | L69: 143.6 | M69: 195.1 | N69: 96.5 | O69: 158.5 | P69: 217
D70: Region 12Enhanced Life $150,00050-99 | E70: 78.2 | F70: 120.7 | G70: =SUM(G21+$E$98) -> 156.7 | H70: 89.1 | I70: 143.6 | J70: 196.1 | K70: 95.6 | L70: 158.1 | M70: 216.1 | N70: 104.5 | O70: 174.5 | P70: 241.5
D74: List_RateTable_VOLPPO | E74: ALL PLANS
D75: Region 31WithOrtho | E75: 49 | F75: 95 | G75: 143.5 | H75: X | I75: X | J75: X | K75: X | L75: X | M75: X | N75: X | O75: X | P75: X
D76: Region 32WithOrtho | E76: 53.5 | F76: 105.5 | G76: 160 | H76: X | I76: X | J76: X | K76: X | L76: X | M76: X | N76: X | O76: X | P76: X
D77: Region 21WithOrtho | E77: 62 | F77: 125 | G77: 188 | H77: X | I77: X | J77: X | K77: X | L77: X | M77: X | N77: X | O77: X | P77: X
D78: Region 22WithOrtho | E78: 70 | F78: 141 | G78: 211 | H78: X | I78: X | J78: X | K78: X | L78: X | M78: X | N78: X | O78: X | P78: X
D79: Region 11WithOrtho | E79: 69 | F79: 139 | G79: 208 | H79: X | I79: X | J79: X | K79: X | L79: X | M79: X | N79: X | O79: X | P79: X
D80: Region 12WithOrtho | E80: 76.5 | F80: 156.5 | G80: 234 | H80: X | I80: X | J80: X | K80: X | L80: X | M80: X | N80: X | O80: X | P80: X
D82: Region 31WithoutOrtho | E82: 49 | F82: 92 | G82: 135 | H82: X | I82: X | J82: X | K82: X | L82: X | M82: X | N82: X | O82: X | P82: X
D83: Region 32WithoutOrtho | E83: 53.5 | F83: 103.5 | G83: 150.5 | H83: X | I83: X | J83: X | K83: X | L83: X | M83: X | N83: X | O83: X | P83: X
D84: Region 21WithoutOrtho | E84: 62 | F84: 122 | G84: 176 | H84: X | I84: X | J84: X | K84: X | L84: X | M84: X | N84: X | O84: X | P84: X
D85: Region 22WithoutOrtho | E85: 70 | F85: 137.5 | G85: 198.5 | H85: X | I85: X | J85: X | K85: X | L85: X | M85: X | N85: X | O85: X | P85: X
D86: Region 11WithoutOrtho | E86: 69 | F86: 135.5 | G86: 195.5 | H86: X | I86: X | J86: X | K86: X | L86: X | M86: X | N86: X | O86: X | P86: X
D87: Region 12WithoutOrtho | E87: 76.5 | F87: 152.5 | G87: 219.5 | H87: X | I87: X | J87: X | K87: X | L87: X | M87: X | N87: X | O87: X | P87: X
D91: Enhanced Life Rates | E91: GOOD | H91: BETTER | K91: BEST | N91: BETTER PLUS
D92: $50,000 10-49 Enrolled | E92: 9.8 | H92: 8.4 | K92: 7 | N92: 8.4
D93: $100,000 10-49 Enrolled | E93: 23.8 | H93: 22.4 | K93: 21 | N93: 22.4
D94: $150,000 10-49 Enrolled | E94: 37.8 | H94: 36.4 | K94: 35 | N94: 36.4
D96: $50,000 50-99 Enrolled | E96: 7.7 | H96: 6.6 | K96: 5.5 | N96: 6.6
D97: $100,000 50-99 Enrolled | E97: 18.7 | H97: 17.6 | K97: 16.5 | N97: 17.6
D98: $150,000 50-99 Enrolled | E98: 29.7 | H98: 28.6 | K98: 27.5 | N98: 28.6
D101: List_RateTable_HMO | E101: GOOD (2-99) | H101: BETTER (5-99) | K101: BEST (5-99) | N101: BETTER PLUS
B102: DHMO Bundle Only Use! | D102: Region 1Standard Life Amount0-4 | E102: 35 | F102: 55.5 | G102: 80.5 | H102: X | I102: X | J102: X | K102: X | L102: X | M102: X | N102: X | O102: X | P102: X
B103: DHMO Bundle Only Use! | D103: Region 2Standard Life Amount0-4 | E103: 34.5 | F103: 52.5 | G103: 77 | H103: X | I103: X | J103: X | K103: X | L103: X | M103: X | N103: X | O103: X | P103: X
B105: Dual Choice Only Use! | D105: Region 1Standard Life Amount2-9 | E105: 35 | F105: 55.5 | G105: 80.5 | H105: 39 | I105: 60.5 | J105: 86.5 | K105: 43 | L105: 65.5 | M105: 94.5 | N105: X | O105: X | P105: X
B106: Dual Choice Only Use! | D106: Region 2Standard Life Amount2-9 | E106: 34.5 | F106: 52.5 | G106: 77 | H106: 37.5 | I106: 57.5 | J106: 84 | K106: 42.5 | L106: 62.5 | M106: 91 | N106: X | O106: X | P106: X
B108: DHMO Bundle Only Use! | D108: Region 1Standard Life Amount5-9 | E108: 35 | F108: 55.5 | G108: 80.5 | H108: 39 | I108: 60.5 | J108: 86.5 | K108: 43 | L108: 65.5 | M108: 94.5 | N108: X | O108: X | P108: X
B109: DHMO Bundle Only Use! | D109: Region 2Standard Life Amount5-9 | E109: 34.5 | F109: 52.5 | G109: 77 | H109: 37.5 | I109: 57.5 | J109: 84 | K109: 42.5 | L109: 62.5 | M109: 91 | N109: X | O109: X | P109: X
D111: Region 1Standard Life Amount10-49 | E111: 35 | F111: 55.5 | G111: 80.5 | H111: 39 | I111: 60.5 | J111: 86.5 | K111: 43 | L111: 65.5 | M111: 94.5 | N111: X | O111: X | P111: X
D112: Region 2Standard Life Amount10-49 | E112: 34.5 | F112: 52.5 | G112: 77 | H112: 37.5 | I112: 57.5 | J112: 84 | K112: 42.5 | L112: 62.5 | M112: 91 | N112: X | O112: X | P112: X
D114: Region 1Standard Life Amount50-99 | E114: 35 | F114: 55.5 | G114: 80.5 | H114: 39 | I114: 60.5 | J114: 86.5 | K114: 43 | L114: 65.5 | M114: 94.5 | N114: X | O114: X | P114: X
D115: Region 2Standard Life Amount50-99 | E115: 34.5 | F115: 52.5 | G115: 77 | H115: 37.5 | I115: 57.5 | J115: 84 | K115: 42.5 | L115: 62.5 | M115: 91 | N115: X | O115: X | P115: X
D117: Region 1Enhanced Life $50,00010-49 | E117: =SUM(E108+$E$92) -> 44.8 | F117: =SUM(F108+$E$92) -> 65.3 | G117: =SUM(G108+$E$92) -> 90.3 | H117: =SUM(H108+$H$92) -> 47.4 | I117: 68.9 | J117: 94.9 | K117: =SUM(K108+$K$92) -> 50 | L117: 72.5 | M117: 101.5 | N117: X | O117: X | P117: X
D118: Region 2Enhanced Life $50,00010-49 | E118: =SUM(E109+$E$92) -> 44.3 | F118: 62.3 | G118: =SUM(G109+$E$92) -> 86.8 | H118: 45.9 | I118: 65.9 | J118: 92.4 | K118: 49.5 | L118: 69.5 | M118: 98 | N118: X | O118: X | P118: X
D119: Region 1Enhanced Life $50,00050-99 | E119: =SUM(E108+$E$96) -> 42.7 | F119: 63.2 | G119: 88.2 | H119: =SUM(H108+$H$96) -> 45.6 | I119: 67.1 | J119: 93.1 | K119: =SUM(K108+$K$96) -> 48.5 | L119: 71 | M119: 100 | N119: X | O119: X | P119: X
D120: Region 2Enhanced Life $50,00050-99 | E120: 42.2 | F120: 60.2 | G120: 84.7 | H120: 44.1 | I120: 64.1 | J120: 90.6 | K120: 48 | L120: 68 | M120: 96.5 | N120: X | O120: X | P120: X
D122: Region 1Enhanced Life $100,00010-49 | E122: =SUM(E108+$E$93) -> 58.8 | F122: 79.3 | G122: =SUM(G108+$E$93) -> 104.3 | H122: =SUM(H108+$H$93) -> 61.4 | I122: 82.9 | J122: 108.9 | K122: =SUM(K108+$K$93) -> 64 | L122: 86.5 | M122: 115.5 | N122: X | O122: X | P122: X
D123: Region 2Enhanced Life $100,00010-49 | E123: 58.3 | F123: 76.3 | G123: =SUM(G109+$E$93) -> 100.8 | H123: 59.9 | I123: 79.9 | J123: 106.4 | K123: 63.5 | L123: 83.5 | M123: 112 | N123: X | O123: X | P123: X
D124: Region 1Enhanced Life $100,00050-99 | E124: =SUM(E108+$E$97) -> 53.7 | F124: 74.2 | G124: =SUM(G108+$E$97) -> 99.2 | H124: =SUM(H108+$H$97) -> 56.6 | I124: 78.1 | J124: 104.1 | K124: =SUM(K108+$K$97) -> 59.5 | L124: 82 | M124: 111 | N124: X | O124: X | P124: X
D125: Region 2Enhanced Life $100,00050-99 | E125: 53.2 | F125: 71.2 | G125: =SUM(G109+$E$97) -> 95.7 | H125: 55.1 | I125: 75.1 | J125: 101.6 | K125: 59 | L125: 79 | M125: 107.5 | N125: X | O125: X | P125: X
D127: Region 1Enhanced Life $150,00010-49 | E127: =SUM(E108+$E$94) -> 72.8 | F127: =SUM(F108+$E$94) -> 93.3 | G127: 118.3 | H127: =SUM(H108+$H$94) -> 75.4 | I127: 96.9 | J127: 122.9 | K127: =SUM(K108+$K$94) -> 78 | L127: 100.5 | M127: 129.5 | N127: X | O127: X | P127: X
D128: Region 2Enhanced Life $150,00010-49 | E128: 72.3 | F128: 90.3 | G128: 114.8 | H128: 73.9 | I128: 93.9 | J128: 120.4 | K128: 77.5 | L128: 97.5 | M128: 126 | N128: X | O128: X | P128: X
D129: Region 1Enhanced Life $150,00050-99 | E129: =SUM(E108+$E$98) -> 64.7 | F129: 85.2 | G129: 110.2 | H129: =SUM(H108+$H$98) -> 67.6 | I129: 89.1 | J129: 115.1 | K129: =SUM(K108+$K$98) -> 70.5 | L129: 93 | M129: 122 | N129: X | O129: X | P129: X
D130: Region 2Enhanced Life $150,00050-99 | E130: 64.2 | F130: 82.2 | G130: 106.7 | H130: 66.1 | I130: 86.1 | J130: 112.6 | K130: 70 | L130: 90 | M130: 118.5 | N130: X | O130: X | P130: X
D132: List_RateTable_VOLHMO | E132: ALL PLANS
D133: Region 1 | E133: 41 | F133: 64.5 | G133: 100.5 | H133: X | I133: X | J133: X | K133: X | L133: X | M133: X | N133: X | O133: X | P133: X
D134: Region 2 | E134: 39 | F134: 61.5 | G134: 95.5 | H134: X | I134: X | J134: X | K134: X | L134: X | M134: X | N134: X | O134: X | P134: X
